bitfinex/quotes_ETHUSD_20240921
["timestamp","ask_amount","ask_price","bid_price","bid_amount"]
[1726920069058,0.91680439,2560.7,2560.4,0.05065815]
[1726920069984,2.3997,2560.6,2560.4,0.05065815]
[1726920072387,0.09765263,2560.5,2560.1,5.54314649]
[1726920072581,2.3997,2560.4,2560.1,5.54314649]
[1726920072787,2.3997,2560.4,2560.2,0.05065815]
[1726920077415,2.3997,2560.4,2560.3,1.72955801]
[1726920077962,2.3997,2560.4,2560.3,1.78029143]
[1726920078610,2.4097,2560.6,2560.3,1.78029143]
[1726920078812,2.74612571,2560.6,2560.3,1.78029143]
[1726920079670,2.74612571,2560.6,2560.3,0.05073342]
[1726920079868,2.4097,2560.4,2560.3,0.05073342]
[1726920080090,2.4097,2560.4,2560.1,4.72955801]
[1726920080321,2.4097,2560.4,2560.3,0.05073342]
[1726920080614,2.4097,2560.4,2560.1,4.72955801]
[1726920081103,2.4097,2560.4,2560.2,0.05073342]
[1726920084879,2.3627691,2560.4,2560.2,0.05073342]
[1726920088523,2.3627691,2560.4,2560.2,4.78029143]
[1726920090532,2.8437768,2560.6,2560.2,4.78029143]
[1726920090686,2.74612571,2560.6,2560.4,1.72955801]
[1726920090890,2.74612571,2560.6,2560.5,0.05069998]
[1726920092003,1.74612571,2560.6,2560.5,0.05069998]
[1726920092198,2.12960457,2560.6,2560.5,0.05069998]
[1726920092635,1.12960457,2560.6,2560.5,0.05069998]
[1726920092932,0.74612571,2560.6,2560.5,0.05069998]
[1726920093132,0.856908,2560.8,2560.5,0.05069998]
[1726920093463,0.037753,2560.8,2560.5,0.05069998]
[1726920093600,0.037753,2560.8,2560.6,1.72955801]
[1726920094189,0.037753,2560.8,2560.7,0.05069998]
[1726920105038,1.339653,2560.8,2560.7,0.05069998]
[1726920106164,1.56529768,2560.8,2560.7,0.05069998]
[1726920107566,1.66293721,2560.8,2560.7,0.05069998]
[1726920107922,1.66293721,2560.8,2560.3,1.0]
[1726920107923,1.3019,2560.7,2560.3,1.0]
[1726920108124,0.09764869,2560.6,2560.3,1.0]
[1726920108352,0.09764869,2560.6,2560.4,0.05064562]
[1726920108929,0.34585883,2560.6,2560.4,0.05064562]
[1726920110336,1.3019,2560.5,2560.4,0.05064562]
[1726920119367,3.24127206,2560.5,2560.4,0.05064562]
[1726920119671,1.3019,2560.5,2560.4,0.05064562]
[1726920119883,3.24123859,2560.5,2560.4,0.05064562]
[1726920120040,3.72312421,2560.5,2560.4,0.05064562]
[1726920120748,2.90395038,2560.5,2560.4,0.05064562]
[1726920121159,3.7230997,2560.5,2560.4,0.05064562]
[1726920121358,3.72310049,2560.5,2560.4,0.05064562]
[1726920121554,2.90394549,2560.5,2560.4,0.05064562]
[1726920121852,3.72310049,2560.5,2560.4,0.05064562]
[1726920122060,1.78378562,2560.5,2560.4,0.05064562]
[1726920124088,3.72291764,2560.5,2560.4,8.9e-07]
[1726920124241,2.83361753,2560.5,2560.3,2.5]
[1726920124441,3.82115501,2560.4,2560.3,2.5]
[1726920124689,3.82115501,2560.4,2560.3,2.36975959]
[1726920125104,3.82115501,2560.4,2560.3,2.14660894]
[1726920125245,3.0015686,2560.4,2560.3,2.10076329]
[1726920125444,3.82097162,2560.4,2560.3,2.10076329]
[1726920125639,3.82094926,2560.4,2560.3,2.10076329]
[1726920125881,2.70131513,2560.4,2560.3,2.14660894]
[1726920126058,1.88172872,2560.4,2560.3,2.14660894]
[1726920126450,3.82084855,2560.4,2560.3,2.14660894]
[1726920126779,1.88172872,2560.4,2560.3,2.14660894]
[1726920127284,3.82086493,2560.4,2560.3,2.10076329]
[1726920127487,1.88172872,2560.4,2560.3,2.10076329]
[1726920128052,3.82069725,2560.4,2560.3,2.10076329]
[1726920129662,3.00081187,2560.4,2560.3,2.10076329]
[1726920130084,1.88172872,2560.4,2560.3,2.10076329]
[1726920130654,3.82029632,2560.4,2560.3,2.10076329]
[1726920131026,1.88172872,2560.4,2560.3,2.10076329]
[1726920131149,3.00128023,2560.4,2560.3,2.10076329]
[1726920131346,1.88172872,2560.4,2560.3,2.10076329]
[1726920138335,1.88172872,2560.4,2559.4,2.3926]
[1726920138336,1.3019,2560.3,2559.4,2.3926]
[1726920138625,2.4846,2560.1,2559.4,0.291837]
[1726920138829,0.09768643,2560.0,2559.5,1.77409701]
[1726920139024,0.35591507,2560.0,2559.5,1.77409701]
[1726920140017,0.35591507,2560.0,2559.5,1.72955801]
[1726920140341,0.35591507,2560.0,2559.6,0.044539]
[1726920144417,2.4846,2559.9,2559.6,0.044539]
[1726920144745,0.09768272,2559.8,2559.6,0.044539]
[1726920145430,0.38173386,2559.8,2559.6,0.044539]
[1726920147826,0.38173386,2559.8,2559.3,4.72955801]
[1726920148119,0.38173386,2559.8,2559.4,0.044539]
[1726920153351,2.4846,2559.7,2559.4,0.044539]
[1726920153615,0.0976974,2559.6,2559.4,0.044539]
[1726920153766,0.0976974,2559.6,2559.3,4.72955801]
[1726920154055,0.0976974,2559.6,2559.5,0.04467683]
[1726920154260,0.0976974,2559.6,2559.4,0.04467683]
[1726920154473,0.0976974,2559.6,2559.3,4.72955801]
[1726920154777,0.0976974,2559.6,2559.5,0.04467683]
[1726920155059,0.0976974,2559.6,2559.3,4.72955801]
[1726920155266,0.0976974,2559.6,2559.5,0.04467683]
[1726920155563,0.0976974,2559.6,2559.3,4.72955801]
[1726920155723,0.0976974,2559.6,2559.5,0.04467683]
[1726920155919,0.0976974,2559.6,2559.3,4.72955801]
[1726920156150,0.0976974,2559.6,2559.5,0.04467683]
[1726920156350,0.38433225,2559.6,2559.3,4.72955801]
[1726920156524,0.38433225,2559.6,2559.5,0.04467683]
[1726920156734,0.38433225,2559.6,2559.3,4.72955801]
[1726920156950,0.38433225,2559.6,2559.5,0.04467683]
[1726920157431,2.86893225,2559.6,2558.9,2.3926]
[1726920157673,2.5822974,2559.6,2559.0,0.04467683]
[1726920157982,2.5822974,2559.6,2558.8,1.72955801]
[1726920158330,2.5822974,2559.6,2559.1,0.04483554]
[1726920158541,2.2823,2559.4,2558.8,1.72955801]
[1726920158784,0.09770823,2559.3,2558.8,4.72955801]
[1726920159137,0.09770823,2559.3,2558.9,0.04483554]
[1726920159474,2.2823,2559.2,2558.9,0.04483554]
[1726920159774,0.09770766,2559.1,2558.9,0.04483554]
[1726920160070,2.2823,2559.2,2558.9,0.04483554]
[1726920161236,2.52030094,2559.2,2558.9,0.04483554]
[1726920161874,0.0977093,2559.1,2558.9,0.04483554]
[1726920162370,2.52030094,2559.2,2558.9,0.04483554]
[1726920163270,0.09770926,2559.1,2558.9,0.04483554]
[1726920164638,0.09770926,2559.1,2558.7,5.4148]
[1726920164856,0.09770926,2559.1,2558.8,0.04495667]
[1726920165187,0.35951028,2559.1,2558.8,0.04495667]
[1726920165390,2.2823,2559.0,2558.8,0.04495667]
[1726920165591,0.09772384,2558.9,2558.8,0.04495667]
[1726920165752,0.09772384,2558.9,2558.4,1.72955801]
[1726920165953,0.09772384,2558.9,2558.8,0.0436471]
[1726920166251,0.09772384,2558.9,2558.3,2.4148]
[1726920166453,2.2823,2558.8,2558.3,2.4148]
[1726920166683,0.09773197,2558.7,2558.4,0.0436471]
[1726920166988,0.09773197,2558.7,2558.3,2.4148]
[1726920167850,0.09773197,2558.7,2558.1,1.72955801]
[1726920168056,0.09773197,2558.7,2558.4,0.04371814]
[1726920168297,0.33573517,2558.7,2558.2,3.0]
[1726920168495,0.33573517,2558.7,2558.5,0.04382262]
[1726920168694,0.33573517,2558.7,2558.2,3.0]
[1726920168894,0.33573517,2558.7,2558.6,0.04382262]
[1726920169202,0.33573517,2558.7,2558.2,3.0]
[1726920169370,2.3106,2558.6,2558.2,3.0]
[1726920169564,0.09773202,2558.5,2558.2,3.0]
[1726920169779,0.09773202,2558.5,2557.8,7.19235801]
[1726920170614,2.3106,2558.4,2557.7,0.037753]
[1726920170762,0.09775387,2558.3,2557.7,0.037753]
[1726920171109,0.33858926,2558.3,2557.7,0.037753]
[1726920175655,2.3106,2558.2,2557.7,0.037753]
[1726920175857,0.09775099,2558.1,2557.7,0.037753]
[1726920176298,0.09775099,2558.1,2557.8,1.72955801]
[1726920181013,0.24083539,2558.3,2558.0,1.72955801]
[1726920181162,2.43,2558.4,2558.0,1.72955801]
[1726920181367,0.09774411,2558.2,2558.0,1.72955801]
[1726920181564,2.52774405,2558.4,2558.0,1.72955801]
[1726920183405,2.52774405,2558.4,2558.1,0.04459598]
[1726920183660,0.2527744,2558.3,2558.1,0.04459598]
[1726920183770,0.09774431,2558.2,2558.1,0.04459598]
[1726920184491,0.09774431,2558.2,2557.8,4.72955801]
[1726920184711,0.09774431,2558.2,2558.1,0.04459598]
[1726920184928,2.43,2558.1,2557.7,0.037753]
[1726920185065,0.35053203,2558.0,2557.7,0.037753]
[1726920185482,0.35053203,2558.0,2557.8,1.72955801]
[1726920188939,0.35053203,2558.0,2557.7,0.037753]
[1726920198331,0.35053203,2558.0,2557.8,0.04470473]
[1726920198826,0.35053203,2558.0,2557.8,1.77426274]
[1726920199817,2.57924867,2558.3,2557.8,4.04056274]
[1726920200035,2.57924867,2558.3,2558.1,1.72955801]
[1726920202633,0.0977417,2558.2,2558.1,1.72955801]
[1726920203033,0.0977417,2558.2,2558.1,1.77426274]
[1726920205711,2.4815,2558.3,2558.1,1.77426274]
[1726920205897,0.24815,2558.2,2558.1,1.77426274]
[1726920206103,0.24815,2558.2,2558.1,1.72955801]
[1726920206401,0.24815,2558.2,2558.1,1.77420838]
[1726920206825,0.34589111,2558.2,2558.1,0.04465037]
[1726920207224,0.34589111,2558.2,2557.9,1.72955801]
[1726920207632,0.34589111,2558.2,2558.0,0.04465037]
[1726920213357,1.16441425,2558.2,2558.0,0.04465037]
[1726920213720,0.36459143,2558.1,2558.0,0.04465037]
[1726920214361,1.11578569,2558.1,2558.0,0.04465037]
[1726920214667,1.11578593,2558.1,2558.0,0.04465037]
[1726920214832,1.11578584,2558.1,2558.0,0.04465037]
[1726920217340,3.06151117,2558.1,2558.0,0.04465037]
[1726920217767,2.24298803,2558.1,2558.0,0.04465037]
[1726920218572,3.06151117,2558.1,2558.0,0.04465037]
[1726920218773,1.11607349,2558.1,2558.0,0.04465037]
[1726920219076,2.24328035,2558.1,2558.0,0.04465037]
[1726920219970,3.06180349,2558.1,2558.0,0.04465037]
[1726920220337,2.24328035,2558.1,2558.0,0.04465037]
[1726920220768,3.06180349,2558.1,2558.0,0.04465037]
[1726920223598,3.06180349,2558.1,2557.7,0.037753]
[1726920223599,5.52960349,2558.1,2557.7,0.037753]
[1726920223749,3.26289728,2558.0,2557.7,0.037753]
[1726920223952,0.7520219,2557.9,2557.7,0.037753]
[1726920224261,0.09775591,2557.8,2557.7,0.037753]
[1726920228381,0.09775591,2557.8,2557.7,0.08249117]
[1726920229492,1.97792804,2557.8,2557.4,6.99465801]
[1726920229703,3.38669804,2557.8,2557.7,0.04473817]
[1726920229855,5.26692509,2557.8,2557.4,6.99465801]
[1726920230174,2.70139773,2557.7,2557.5,0.0432469]
[1726920230376,0.09776067,2557.6,2557.5,0.0432469]
[1726920230576,0.09776068,2557.7,2557.5,0.0432469]
[1726920230892,0.55960645,2557.7,2557.5,0.0432469]
[1726920231195,1.38074858,2557.7,2557.5,0.0432469]
[1726920231359,0.55960645,2557.7,2557.5,0.0432469]
[1726920231760,1.38074858,2557.7,2557.5,0.0432469]
[1726920232180,0.55960645,2557.7,2557.5,0.0432469]
[1726920235365,0.38485486,2557.6,2557.5,0.0432469]
[1726920241403,0.09776068,2557.7,2557.5,0.0432469]
[1726920241587,1.23175489,2557.9,2557.6,1.72955801]
[1726920241588,0.82114213,2557.9,2557.6,1.72955801]
[1726920241794,3.74528708,2558.0,2557.6,4.10055801]
[1726920242088,0.75221839,2557.9,2557.7,0.04345188]
[1726920242287,0.44975055,2557.8,2557.7,0.04345188]
[1726920242987,0.54750993,2557.8,2557.7,0.04345188]
[1726920243188,3.75994082,2557.8,2557.7,0.04345188]
[1726920243360,3.00770993,2557.8,2557.7,0.04345188]
[1726920243856,3.75991339,2557.8,2557.7,0.04345188]
[1726920244099,3.75991692,2557.8,2557.7,0.04345188]
[1726920244469,3.00770993,2557.8,2557.7,0.04345188]
[1726920246116,3.75988172,2557.8,2557.7,0.04345188]
[1726920246266,3.75988464,2557.8,2557.7,0.04345188]
[1726920246968,3.75987178,2557.8,2557.7,0.04345188]
[1726920247191,3.00770993,2557.8,2557.7,0.04345188]
[1726920247512,3.00770993,2557.8,2557.7,0.54345188]
[1726920248112,0.54750993,2557.8,2557.7,0.54345188]
[1726920250502,0.44975055,2557.8,2557.7,0.54345188]
[1726920251680,0.44975055,2557.8,2557.7,1.04345188]
[1726920253794,0.82114213,2558.0,2557.7,1.04345188]
[1726920253993,0.82114213,2558.2,2557.9,1.72955801]
[1726920254168,0.75260129,2558.1,2557.8,5.41437239]
[1726920254369,0.82114213,2558.2,2558.1,1.72955801]
[1726920254712,2.70260578,2558.2,2558.1,1.72955801]
[1726920254925,3.44568775,2558.2,2558.1,1.72955801]
[1726920255211,3.54342848,2558.2,2558.1,1.7729304]
[1726920255574,3.54342848,2558.2,2558.1,0.04337239]
[1726920255772,1.66196483,2558.2,2557.9,1.72955801]
[1726920256076,0.75259319,2558.1,2557.9,1.72955801]
[1726920256386,1.66196483,2558.2,2557.9,1.72955801]
[1726920256586,0.28937197,2558.1,2557.9,1.72955801]
[1726920257276,0.8408227,2558.2,2557.9,1.72955801]
[1726920258411,0.8408227,2558.2,2558.0,0.04337239]
[1726920263299,0.82114213,2558.3,2558.1,4.05905801]
[1726920263626,0.09773437,2558.4,2558.1,4.05905801]
[1726920264015,0.09773437,2558.4,2558.2,0.04316324]
[1726920266485,0.09773437,2558.4,2558.1,4.05905801]
[1726920266486,0.09773437,2558.4,2558.3,0.04316324]
[1726920266640,1.25045751,2558.4,2558.3,0.04316324]
[1726920266938,1.15272314,2558.4,2558.1,4.05905801]
[1726920267323,1.25045732,2558.4,2558.2,0.04311306]
[1726920268597,1.25045732,2558.4,2558.1,4.05905801]
[1726920276710,1.25045732,2558.4,2558.2,0.04310888]
[1726920276950,1.25045732,2558.4,2558.1,4.05905801]
[1726920278247,1.25045732,2558.4,2558.2,0.04307125]
[1726920279034,1.25045732,2558.4,2558.1,4.05905801]
[1726920279254,1.25045732,2558.4,2558.3,0.04307125]
[1726920279759,1.25045732,2558.4,2558.1,4.05905801]
[1726920280120,1.25045732,2558.4,2558.2,0.04307125]
[1726920280318,1.25045732,2558.4,2558.1,4.05905801]
[1726920282661,2.323,2558.3,2558.2,0.04307125]
[1726920282871,2.68034573,2558.3,2558.2,0.04307125]
[1726920283074,2.68034573,2558.3,2557.9,4.72955801]
[1726920283362,0.09773717,2558.2,2557.9,4.72955801]
[1726920283665,0.09773714,2558.3,2558.0,2.4524]
[1726920283871,0.09773521,2558.4,2558.0,5.4524]
[1726920284024,1.11374942,2558.4,2558.0,5.4524]
[1726920288531,1.11374942,2558.4,2558.1,0.04308381]
[1726920289949,1.11374942,2558.4,2558.0,5.4524]
[1726920290338,1.11374942,2558.4,2558.1,0.04308381]
[1726920290551,0.42578916,2558.3,2558.1,0.04308381]
[1726920290872,0.42578916,2558.3,2558.2,0.04308381]
[1726920291036,0.42578916,2558.3,2558.0,5.4524]
[1726920291231,0.42578916,2558.3,2558.2,0.04308381]
[1726920291431,0.42578916,2558.3,2558.0,5.4524]
[1726920291667,0.42578916,2558.3,2558.2,0.04308381]
[1726920291841,0.42578916,2558.3,2558.0,5.4524]
[1726920292049,0.42578916,2558.3,2558.2,0.04308381]
[1726920292242,0.42578916,2558.3,2558.0,5.4524]
[1726920292444,0.42578916,2558.3,2558.2,0.04308381]
[1726920292675,0.42578916,2558.3,2558.0,5.4524]
[1726920292894,0.42578916,2558.3,2558.2,0.04308381]
[1726920293053,0.42578916,2558.3,2558.0,5.4524]
[1726920293556,0.42578916,2558.3,2558.1,0.04308381]
[1726920294165,0.42578916,2558.3,2558.0,5.4524]
[1726920294364,0.42578916,2558.3,2558.1,0.04308381]
[1726920294561,0.42578916,2558.3,2558.0,5.4524]
[1726920294895,0.42578916,2558.3,2558.1,0.04308381]
[1726920295669,0.42578916,2558.3,2558.0,5.4524]
[1726920295872,0.42578916,2558.3,2558.2,0.04308381]
[1726920296200,0.42578916,2558.3,2558.0,5.4524]
[1726920296695,0.42578916,2558.3,2558.1,0.04308381]
[1726920296892,0.91887734,2558.4,2558.1,1.77264182]
[1726920297097,7.83714213,2558.6,2558.3,4.18195801]
[1726920297301,7.016,2558.6,2558.3,4.18195801]
[1726920297501,7.016,2558.6,2558.4,0.04311309]
[1726920297667,7.016,2558.6,2558.3,4.18195801]
[1726920297993,7.83714213,2558.6,2558.3,4.18195801]
[1726920298203,7.016,2558.6,2558.3,4.18195801]
[1726920298359,7.016,2558.6,2558.4,0.04308381]
[1726920298559,7.016,2558.6,2558.3,4.18195801]
[1726920298783,7.016,2558.6,2558.4,0.04308381]
[1726920299000,7.016,2558.6,2558.3,4.18195801]
[1726920299492,7.83714213,2558.6,2558.4,0.04308381]
[1726920299696,7.83714213,2558.6,2558.3,4.18195801]
[1726920299697,1.01601421,2558.5,2558.3,4.18195801]
[1726920299997,7.83714213,2558.6,2558.3,4.18195801]
[1726920300156,7.83714213,2558.6,2558.4,0.04308381]
[1726920300366,7.83714213,2558.6,2558.3,4.18195801]
[1726920300822,7.83714213,2558.6,2558.4,0.04308381]
[1726920300976,7.83714213,2558.6,2558.3,4.18195801]
[1726920301310,7.83714213,2558.6,2558.4,0.04308381]
[1726920301510,9.46405704,2558.6,2558.4,0.04308381]
[1726920301672,9.36633183,2558.6,2558.4,0.04308381]
[1726920302373,0.82114213,2558.7,2558.5,4.09785801]
[1726920302577,0.82114213,2558.9,2558.6,4.72955801]
[1726920302803,0.82114213,2559.0,2558.8,1.72955801]
[1726920302976,0.2052897,2558.9,2558.8,1.72955801]
[1726920303174,2.08356143,2558.9,2558.8,1.72955801]
[1726920303400,2.08356143,2558.9,2558.8,1.77256235]
[1726920303574,0.95659399,2558.9,2558.8,1.77256235]
[1726920303982,0.95640689,2558.9,2558.8,1.77256235]
[1726920304172,0.2052897,2558.9,2558.8,1.77256235]
[1726920304589,0.82114213,2559.0,2558.8,1.77256235]
[1726920304784,0.82114213,2559.1,2558.8,1.77256235]
[1726920305014,1.87732163,2559.0,2558.8,1.77256235]
[1726920305321,0.82114213,2559.1,2558.8,1.77256235]
[1726920305617,0.75076721,2559.0,2558.8,1.77256235]
[1726920305767,0.82114213,2559.1,2558.8,1.77256235]
[1726920305971,1.19367464,2559.0,2558.8,1.77256235]
[1726920306213,0.44289097,2559.0,2558.8,1.77256235]
[1726920306807,1.36174509,2559.0,2558.8,1.72955801]
[1726920306974,0.54060296,2559.0,2558.8,1.72955801]
[1726920307175,0.54060296,2559.0,2558.9,0.04291654]
[1726920307376,1.29127347,2559.0,2558.8,1.72955801]
[1726920307573,0.54060296,2559.0,2558.8,1.72955801]
[1726920309380,0.54060296,2559.0,2558.9,0.04282038]
[1726920309725,0.54060296,2559.0,2558.8,1.72955801]
[1726920310023,0.54060296,2559.0,2558.9,0.04282038]
[1726920310218,0.54060296,2559.0,2558.6,3.0]
[1726920310537,4.97559034,2558.9,2558.5,1.0]
[1726920310674,3.46982941,2558.8,2558.5,1.0]
[1726920310877,0.75089979,2558.7,2558.5,1.0]
[1726920311077,0.09772187,2558.6,2558.5,1.0]
[1726920312214,0.09772189,2558.7,2558.5,1.0]
[1726920313378,0.09772189,2558.7,2558.5,2.72955801]
[1726920314318,0.48491777,2558.7,2558.5,2.72955801]
[1726920314480,0.48491777,2558.7,2558.5,3.22955801]
[1726920318412,0.48491777,2558.7,2558.6,0.04272842]
[1726920324749,0.38719588,2558.7,2558.6,0.04272842]
[1726920332397,0.38719588,2558.7,2558.6,0.11564417]
[1726920333298,0.91886073,2558.8,2558.6,0.11564417]
[1726920333804,0.0977186,2558.8,2558.6,0.11564417]
[1726920334507,0.91886073,2558.8,2558.6,0.11564417]
[1726920334707,0.09771739,2558.8,2558.6,2.50334417]
[1726920335340,0.09771739,2558.8,2558.6,2.83165249]
[1726920336424,0.09771739,2558.8,2558.6,2.50334417]
[1726920336621,0.35706793,2558.8,2558.6,2.83166984]
[1726920337856,0.75228367,2558.7,2558.6,2.50334417]
[1726920338215,0.75228367,2558.7,2558.6,2.83166984]
[1726920338422,0.75232415,2558.7,2558.6,2.83166984]
[1726920338628,1.17821006,2558.8,2558.6,2.83166984]
[1726920338811,0.2409965,2558.7,2558.6,0.44396984]
[1726920339626,0.99341812,2558.7,2558.6,0.11564417]
[1726920339822,0.99341812,2558.7,2558.6,0.44416093]
[1726920340066,3.30181812,2558.7,2558.6,0.44416093]
[1726920340209,5.25165302,2558.7,2558.6,0.11564417]
[1726920340406,4.43051089,2558.7,2558.5,2.0]
[1726920340611,2.70203506,2558.6,2558.5,2.32851676]
[1726920340847,0.82059188,2558.6,2558.5,2.0]
[1726920341050,0.82059188,2558.6,2558.5,2.32851676]
[1726920341051,2.70199995,2558.6,2558.5,2.32851676]
[1726920342244,1.88140807,2558.6,2558.5,2.32851676]
[1726920342443,1.88140807,2558.6,2558.5,2.0]
[1726920342643,3.4480332,2558.6,2558.5,2.0]
[1726920342812,3.4480332,2558.6,2558.5,2.32872909]
[1726920345620,3.44950148,2558.6,2558.5,2.32872909]
[1726920346427,3.44950148,2558.6,2558.5,2.32870812]
[1726920347363,3.44950148,2558.6,2558.5,2.0]
[1726920347558,3.44950148,2558.6,2558.5,2.32870812]
[1726920347921,3.44950148,2558.6,2558.5,2.4352294]
[1726920348430,3.86066449,2558.6,2558.5,2.10652128]
[1726920350533,3.86071629,2558.6,2558.5,2.10652128]
[1726920351946,5.77799386,2558.6,2558.5,2.02210856]
[1726920352269,5.77799386,2558.6,2558.5,1.31546055]
[1726920352629,5.77799386,2558.6,2558.5,1.22910178]
[1726920352829,3.86004891,2558.6,2558.5,1.22910178]
[1726920353028,6.16844891,2558.6,2558.5,1.22910178]
[1726920353345,6.44415498,2558.6,2558.5,1.1089989]
[1726920353559,6.16838368,2558.6,2558.5,1.1089989]
[1726920353772,6.44416834,2558.6,2558.5,1.1089989]
[1726920353974,6.16846592,2558.6,2558.5,1.1089989]
[1726920354273,8.08637548,2558.6,2558.5,1.1089989]
[1726920354476,7.98865736,2558.6,2558.5,1.1089989]
[1726920354967,6.07078628,2558.6,2558.5,1.1089989]
[1726920355136,6.44418431,2558.6,2558.5,1.1089989]
[1726920355339,6.44477541,2558.6,2558.5,1.1089989]
[1726920355868,6.44477541,2558.6,2558.5,0.89667869]
[1726920356074,8.08707983,2558.6,2558.5,0.89667869]
[1726920356371,7.98935261,2558.6,2558.5,0.85717266]
[1726920356669,7.98935261,2558.6,2558.5,0.80207913]
[1726920357037,6.07131565,2558.6,2558.5,0.80207913]
[1726920357237,6.16904263,2558.6,2558.5,0.80207913]
[1726920357960,8.08686346,2558.6,2558.5,0.80207913]
[1726920358136,7.98913648,2558.6,2558.5,0.80207913]
[1726920358337,6.34696262,2558.6,2558.5,0.80207913]
[1726920358688,6.44468915,2558.6,2558.5,0.80207913]
[1726920358833,6.16889978,2558.6,2558.5,0.80207913]
[1726920359036,6.16890139,2558.6,2558.5,0.80207913]
[1726920360180,8.08646801,2558.6,2558.5,0.80207913]
[1726920360386,6.34654004,2558.6,2558.5,0.50444362]
[1726920360590,6.4442676,2558.6,2558.5,0.13624933]
[1726920360787,8.08646904,2558.6,2558.5,0.13624933]
[1726920361079,7.98874148,2558.6,2558.5,0.02972805]
[1726920361283,6.34654004,2558.6,2558.5,0.02972805]
[1726920361474,6.16852104,2558.6,2558.5,0.1362786]
[1726920362048,8.49692209,2558.6,2558.5,0.1362786]
[1726920362250,8.39919281,2558.6,2558.3,0.363722]
[1726920362543,4.28215606,2558.5,2558.4,0.10306156]
[1726920362867,4.55889062,2558.5,2558.3,0.363722]
[1726920363071,3.1152576,2558.4,2558.3,0.363722]
[1726920363574,1.8844723,2558.4,2558.3,0.363722]
[1726920363951,3.1152576,2558.4,2558.3,0.363722]
[1726920364148,4.04418554,2558.4,2558.3,0.363722]
[1726920365394,2.81340024,2558.4,2558.3,0.363722]
[1726920365750,4.04418554,2558.4,2558.3,0.363722]
[1726920366162,2.81340024,2558.4,2558.3,0.363722]
[1726920367172,3.63360663,2558.4,2558.3,0.363722]
[1726920367355,3.63360127,2558.4,2558.3,0.363722]
[1726920368472,3.63375162,2558.4,2558.3,0.363722]
[1726920368672,3.63375162,2558.4,2558.1,1.72955801]
[1726920368883,0.75384906,2558.3,2558.1,1.72955801]
[1726920369194,1.74912897,2558.4,2558.2,0.10322043]
[1726920369399,0.30776449,2558.3,2558.2,0.10322043]
[1726920369582,1.06157408,2558.3,2558.1,1.72955801]
[1726920369779,0.30776449,2558.3,2558.2,0.10322043]
[1726920369986,1.06157317,2558.3,2558.2,0.10322043]
[1726920370157,1.06157043,2558.3,2558.2,0.10322043]
[1726920371073,1.06156691,2558.3,2558.2,0.10322043]
[1726920371273,0.30776449,2558.3,2558.2,0.10322043]
[1726920371684,1.06154917,2558.3,2558.2,0.10322043]
[1726920371884,0.30776449,2558.3,2558.2,0.10322043]
[1726920372407,1.06154247,2558.3,2558.2,0.10322043]
[1726920373298,2.29000838,2558.3,2558.0,2.3]
[1726920373510,0.40549816,2558.3,2558.2,0.10327476]
[1726920373662,1.15930644,2558.3,2558.0,2.3]
[1726920373999,0.40549816,2558.3,2558.1,0.10327476]
[1726920374199,0.30776449,2558.3,2558.1,0.10327476]
[1726920377680,0.91793469,2558.4,2558.1,0.10327476]
[1726920377880,0.75381924,2558.3,2558.1,0.10327476]
[1726920378082,0.91793469,2558.4,2558.1,0.10327476]
[1726920378277,0.75381718,2558.3,2558.1,0.10327476]
[1726920378607,0.91793469,2558.4,2558.1,0.10327476]
[1726920378905,0.96872916,2558.3,2558.0,2.3]
[1726920379148,0.214872,2558.3,2558.2,0.10327476]
[1726920379403,0.9687296,2558.3,2558.0,2.3]
[1726920379603,0.91793469,2558.4,2558.1,1.72955801]
[1726920379807,0.09773366,2558.4,2558.2,2.444]
[1726920379977,0.82020103,2558.5,2558.2,2.444]
[1726920380183,1.07435885,2558.4,2558.2,2.444]
[1726920380498,1.14072591,2558.4,2558.2,2.444]
[1726920381466,0.75398778,2558.3,2558.2,2.444]
[1726920381662,1.14072591,2558.4,2558.2,2.444]
[1726920381663,1.14072591,2558.4,2558.2,2.54727476]
[1726920382809,0.75463828,2558.3,2558.2,2.54727476]
[1726920383018,0.75463841,2558.3,2558.2,2.54727476]
[1726920383594,1.88673926,2558.3,2558.2,2.54727476]
[1726920383789,0.75463841,2558.3,2558.2,2.54727476]
[1726920384027,0.75463841,2558.3,2558.2,2.444]
[1726920384194,0.75463841,2558.3,2558.2,2.54727476]
[1726920384710,3.01970596,2558.3,2558.2,2.54727476]
[1726920384907,1.06725337,2558.3,2558.1,1.72955801]
[1726920385128,0.31261496,2558.3,2558.2,0.10327476]
[1726920385423,3.01986696,2558.3,2558.2,0.10327476]
[1726920385922,3.01986696,2558.3,2558.0,2.3417]
[1726920386225,0.75482103,2558.2,2558.0,2.3417]
[1726920386413,1.13281599,2558.3,2558.0,2.3417]
[1726920386665,0.7549798,2558.2,2558.0,2.3417]
[1726920386911,0.82020103,2558.2,2558.0,2.3417]
[1726920387124,1.13281599,2558.3,2558.0,2.3417]
[1726920387326,2.70768055,2558.2,2558.0,2.3417]
[1726920387524,0.82020103,2558.2,2558.0,2.3417]
[1726920388087,1.13281599,2558.3,2558.0,2.3417]
[1726920388392,0.75501739,2558.2,2558.1,1.72955801]
[1726920389724,1.8881344,2558.2,2558.1,1.72955801]
[1726920390025,0.75501739,2558.2,2558.1,1.72955801]
[1726920391032,1.88823411,2558.2,2558.1,1.72955801]
[1726920391415,2.70843514,2558.2,2558.1,1.72955801]
[1726920392133,0.75501739,2558.2,2558.1,1.72955801]
[1726920392729,0.75561492,2558.2,2558.1,1.72955801]
[1726920392933,2.70926812,2558.2,2558.1,1.72955801]
[1726920393421,2.70926812,2558.2,2558.1,1.83282861]
[1726920397432,2.71084256,2558.2,2558.1,1.83282861]
[1726920402248,2.71103206,2558.2,2558.1,1.83282861]
[1726920403439,2.71240087,2558.2,2558.1,1.83282861]
[1726920405533,1.89083103,2558.2,2558.1,1.83282861]
[1726920406166,2.71248859,2558.2,2558.1,1.83282861]
[1726920407264,1.89121393,2558.2,2558.1,1.83282861]
[1726920407425,2.71289293,2558.2,2558.1,1.83282861]
[1726920407633,1.89121393,2558.2,2558.1,1.83282861]
[1726920408356,2.71287612,2558.2,2558.1,1.83282861]
[1726920408763,2.4818527,2558.2,2558.1,0.1032706]
[1726920408932,3.712638,2558.2,2558.1,0.1032706]
[1726920409764,3.712638,2558.2,2557.9,4.03355801]
[1726920409930,2.71289885,2558.1,2557.9,4.03355801]
[1726920410143,0.75648557,2558.0,2557.9,4.03355801]
[1726920410328,0.75648557,2558.0,2557.9,7.03355801]
[1726920411969,0.75676702,2558.0,2557.9,7.03355801]
[1726920412486,0.82168492,2558.1,2557.9,7.03355801]
[1726920412768,0.82168492,2558.2,2557.9,7.84714649]
[1726920413186,0.7572516,2558.1,2557.9,7.84714649]
[1726920413479,0.82168492,2558.2,2557.9,7.84714649]
[1726920413850,0.7572565,2558.1,2557.9,7.03355801]
[1726920414057,0.82168492,2558.1,2557.9,7.03355801]